[Event "*** Titled Tuesday Blitz"]
[Site "Chess.com"]
[Date "2018.12.04"]
[Round "9"]
[White "champ2005"]
[Black "GMWSO"]
[Result "0-1"]
[WhiteElo "2686"]
[BlackElo "2973"]
[TimeControl "180+2"]
[EndTime "15:09:25 PST"]
[Termination "GMWSO won by resignation"]

1. b3 {[%clk 0:03:01.2]} 1... e5 {[%clk 0:02:53.1]} 2. Bb2 {[%clk 0:03:02.1]}
2... Nc6 {[%clk 0:02:54.8]} 3. e3 {[%clk 0:03:02.5]} 3... Nf6 {[%clk 0:02:49.9]}
4. Nf3 {[%clk 0:03:03.4]} 4... e4 {[%clk 0:02:47.9]} 5. Nd4 {[%clk 0:03:04.4]}
5... Nxd4 {[%clk 0:02:40.7]} 6. Bxd4 {[%clk 0:03:06.3]} 6... d5 {[%clk
0:02:35.9]} 7. c4 {[%clk 0:03:07.3]} 7... Be7 {[%clk 0:02:33.9]} 8. Nc3 {[%clk
0:03:04.4]} 8... dxc4 {[%clk 0:02:27.1]} 9. Bxc4 {[%clk 0:03:03.3]} 9... O-O
{[%clk 0:02:24]} 10. O-O {[%clk 0:02:57.7]} 10... Bf5 {[%clk 0:02:12.6]} 11. Rc1
{[%clk 0:02:50.5]} 11... Bg6 {[%clk 0:02:09.5]} 12. Ne2 {[%clk 0:02:45.8]} 12...
Bd6 {[%clk 0:02:08.4]} 13. Ng3 {[%clk 0:02:38.7]} 13... c6 {[%clk 0:01:55.9]}
14. Qc2 {[%clk 0:02:37.7]} 14... Re8 {[%clk 0:01:55.4]} 15. Qb2 {[%clk
0:02:37.9]} 15... Ng4 {[%clk 0:01:48.4]} 16. Be2 {[%clk 0:02:09.4]} 16... Ne5
{[%clk 0:01:47.1]} 17. f4 {[%clk 0:02:03.9]} 17... exf3 {[%clk 0:01:49]} 18.
gxf3 {[%clk 0:02:04.9]} 18... f6 {[%clk 0:01:15.9]} 19. f4 {[%clk 0:01:47.3]}
19... Nd3 {[%clk 0:01:10.3]} 20. Bxd3 {[%clk 0:01:47.1]} 20... Bxd3 {[%clk
0:01:12.2]} 21. Rf2 {[%clk 0:01:48.6]} 21... Qe7 {[%clk 0:01:12.2]} 22. Qa1
{[%clk 0:01:21.9]} 22... c5 {[%clk 0:01:10.4]} 23. Bc3 {[%clk 0:01:21.3]} 23...
b5 {[%clk 0:01:10.5]} 24. Rg2 {[%clk 0:01:21]} 24... Bg6 {[%clk 0:01:07.6]} 25.
Kh1 {[%clk 0:00:36.6]} 25... Qb7 {[%clk 0:01:06.4]} 26. Rg1 {[%clk 0:00:34.9]}
26... Bf8 {[%clk 0:00:49.9]} 27. f5 {[%clk 0:00:32]} 27... Bf7 {[%clk
0:00:50.3]} 28. Bxf6 {[%clk 0:00:32.3]} 28... Bd5 {[%clk 0:00:45.1]} 29. e4
{[%clk 0:00:33]} 29... Rxe4 {[%clk 0:00:45.6]} 30. Nxe4 {[%clk 0:00:16.6]} 30...
Bxe4 {[%clk 0:00:47.5]} 31. Bxg7 {[%clk 0:00:15]} 31... Bxg7 {[%clk 0:00:49.4]}
32. f6 {[%clk 0:00:16.4]} 32... Rf8 {[%clk 0:00:47.4]} 33. fxg7 {[%clk
0:00:17.2]} 33... Rf2 {[%clk 0:00:47.2]} 34. Qf1 {[%clk 0:00:11.2]} 34... Rxf1
{[%clk 0:00:47.2]} 0-1

[Event "*** Titled Tuesday Blitz"]
[Site "Chess.com"]
[Date "2018.12.04"]
[Round "9"]
[White "PelinGorki"]
[Black "Hikaru"]
[Result "0-1"]
[WhiteElo "2532"]
[BlackElo "3025"]
[TimeControl "180+2"]
[EndTime "15:09:29 PST"]
[Termination "Hikaru won by resignation"]

1. e4 {[%clk 0:03:00.2]} 1... g6 {[%clk 0:02:59.8]} 2. h4 {[%clk 0:03:01]} 2...
c5 {[%clk 0:02:59.3]} 3. h5 {[%clk 0:03:01.9]} 3... Bg7 {[%clk 0:03:00.5]} 4. d3
{[%clk 0:03:02.4]} 4... Nc6 {[%clk 0:03:01.3]} 5. h6 {[%clk 0:03:00.2]} 5... Be5
{[%clk 0:03:01]} 6. Nf3 {[%clk 0:03:00.2]} 6... Bc7 {[%clk 0:03:01.4]} 7. Nc3
{[%clk 0:03:00.3]} 7... Ba5 {[%clk 0:02:57]} 8. Bd2 {[%clk 0:03:00.8]} 8... Nf6
{[%clk 0:02:57.5]} 9. Ng5 {[%clk 0:02:57.2]} 9... d6 {[%clk 0:02:54.9]} 10. Be2
{[%clk 0:02:56.3]} 10... Nd4 {[%clk 0:02:55.7]} 11. Nd5 {[%clk 0:02:42.3]} 11...
Bxd2+ {[%clk 0:02:51.4]} 12. Qxd2 {[%clk 0:02:42.9]} 12... e5 {[%clk 0:02:45.3]}
13. Bd1 {[%clk 0:02:02.4]} 13... Ne6 {[%clk 0:02:40.2]} 14. c4 {[%clk
0:01:53.7]} 14... Nxd5 {[%clk 0:02:35.2]} 15. Nxe6 {[%clk 0:01:54]} 15... fxe6
{[%clk 0:02:33.9]} 16. exd5 {[%clk 0:01:55.5]} 16... exd5 {[%clk 0:02:34.5]} 17.
Bf3 {[%clk 0:01:51.2]} 17... d4 {[%clk 0:02:30.2]} 18. O-O-O {[%clk 0:01:32]}
18... O-O {[%clk 0:02:23.9]} 19. Bd5+ {[%clk 0:01:30.9]} 19... Kh8 {[%clk
0:02:25]} 20. Rhf1 {[%clk 0:01:30.2]} 20... Qf6 {[%clk 0:02:24.7]} 21. Rde1
{[%clk 0:01:23.4]} 21... g5 {[%clk 0:02:22.8]} 22. g3 {[%clk 0:01:15.3]} 22...
Qxh6 {[%clk 0:02:08.8]} 23. Rh1 {[%clk 0:01:10.3]} 23... Qg6 {[%clk 0:02:09.7]}
24. Rh2 {[%clk 0:01:11.1]} 24... Bf5 {[%clk 0:02:10.6]} 25. Reh1 {[%clk
0:01:10.1]} 25... Qf6 {[%clk 0:01:58.6]} 26. Rh6 {[%clk 0:01:05.2]} 26... Qe7
{[%clk 0:01:49.2]} 27. Qe2 {[%clk 0:00:58.3]} 27... Rf6 {[%clk 0:01:43.8]} 28.
R6h5 {[%clk 0:00:56.8]} 28... Qg7 {[%clk 0:01:06.9]} 29. Be4 {[%clk 0:00:54.1]}
29... Bxe4 {[%clk 0:01:08]} 30. Qxe4 {[%clk 0:00:56]} 30... h6 {[%clk
0:01:09.1]} 31. R1h2 {[%clk 0:00:54.9]} 31... Re8 {[%clk 0:01:01.7]} 32. a3
{[%clk 0:00:35.6]} 32... Ree6 {[%clk 0:00:57.9]} 33. Kc2 {[%clk 0:00:34.4]}
33... a5 {[%clk 0:00:53.1]} 34. Kb3 {[%clk 0:00:32.2]} 34... Kg8 {[%clk
0:00:53.9]} 35. Qd5 {[%clk 0:00:20.2]} 35... Kf8 {[%clk 0:00:51.9]} 36. Qe4
{[%clk 0:00:21.5]} 36... Ke8 {[%clk 0:00:50.1]} 37. Qd5 {[%clk 0:00:22.1]} 37...
Kd8 {[%clk 0:00:50.9]} 38. Qe4 {[%clk 0:00:21.4]} 38... Kc7 {[%clk 0:00:51.7]}
39. f3 {[%clk 0:00:19.6]} 39... Qf7 {[%clk 0:00:51.4]} 40. Rf2 {[%clk
0:00:20.7]} 40... Qxh5 {[%clk 0:00:52.4]} 0-1

[Event "*** Titled Tuesday Blitz"]
[Site "Chess.com"]
[Date "2018.12.04"]
[Round "9"]
[White "Wolverine_master"]
[Black "FearNoEvil12"]
[Result "1-0"]
[WhiteElo "2137"]
[BlackElo "1983"]
[TimeControl "180+2"]
[EndTime "15:09:45 PST"]
[Termination "Wolverine_master won by resignation"]

1. Nf3 {[%clk 0:03:01.9]} 1... b5 {[%clk 0:03:00.7]} 2. g3 {[%clk 0:03:00.6]}
2... a6 {[%clk 0:03:01.9]} 3. Bg2 {[%clk 0:03:02.2]} 3... Bb7 {[%clk 0:03:03.1]}
4. O-O {[%clk 0:03:03.7]} 4... Nf6 {[%clk 0:03:04]} 5. c4 {[%clk 0:03:03]} 5...
e6 {[%clk 0:03:01.9]} 6. cxb5 {[%clk 0:03:02.4]} 6... axb5 {[%clk 0:03:03.4]} 7.
Qb3 {[%clk 0:03:03.4]} 7... b4 {[%clk 0:03:03.2]} 8. a3 {[%clk 0:03:03.4]} 8...
Nc6 {[%clk 0:03:01.6]} 9. d3 {[%clk 0:03:03.3]} 9... Bd6 {[%clk 0:02:50.3]} 10.
Bg5 {[%clk 0:03:01.5]} 10... h6 {[%clk 0:02:49.8]} 11. Bxf6 {[%clk 0:03:00.7]}
11... Qxf6 {[%clk 0:02:49.9]} 12. Nbd2 {[%clk 0:03:01.8]} 12... Na5 {[%clk
0:02:45.8]} 13. Qc2 {[%clk 0:02:57.1]} 13... bxa3 {[%clk 0:02:38.9]} 14. bxa3
{[%clk 0:02:53.8]} 14... Nc6 {[%clk 0:02:38.6]} 15. Rfb1 {[%clk 0:02:49.3]}
15... Ba6 {[%clk 0:02:37.9]} 16. Ne4 {[%clk 0:02:27.1]} 16... Qe7 {[%clk
0:02:34.5]} 17. Nxd6+ {[%clk 0:02:28.1]} 17... Qxd6 {[%clk 0:02:34.3]} 18. Nd2
{[%clk 0:02:29.6]} 18... Nd4 {[%clk 0:02:27.9]} 19. Qd1 {[%clk 0:02:23.9]} 19...
Rd8 {[%clk 0:02:26.5]} 20. e3 {[%clk 0:01:58.8]} 20... Nf5 {[%clk 0:02:18.2]}
21. d4 {[%clk 0:01:57.9]} 21... O-O {[%clk 0:02:11.5]} 22. Ne4 {[%clk
0:01:58.9]} 22... Qe7 {[%clk 0:02:08.1]} 23. Qc2 {[%clk 0:01:57.6]} 23... d6
{[%clk 0:02:03.5]} 24. Qc6 {[%clk 0:01:54.6]} 24... Bc8 {[%clk 0:01:51.8]} 25.
a4 {[%clk 0:01:51.9]} 25... Qd7 {[%clk 0:01:41.3]} 26. Nc3 {[%clk 0:01:47.3]}
26... Ne7 {[%clk 0:01:35.1]} 27. Qxd7 {[%clk 0:01:41.3]} 27... Bxd7 {[%clk
0:01:35.6]} 28. Rb7 {[%clk 0:01:42.2]} 28... Rc8 {[%clk 0:01:35.5]} 29. a5
{[%clk 0:01:37.2]} 29... Rfd8 {[%clk 0:01:28.8]} 30. a6 {[%clk 0:01:26.4]} 30...
Nc6 {[%clk 0:01:04.8]} 31. Nb5 {[%clk 0:01:23.6]} 31... d5 {[%clk 0:00:54.3]}
32. Nxc7 {[%clk 0:01:19.1]} 32... Kf8 {[%clk 0:00:30.1]} 33. a7 {[%clk
0:01:17.3]} 33... Nxa7 {[%clk 0:00:25.9]} 34. Raxa7 {[%clk 0:01:08.5]} 34... Bc6
{[%clk 0:00:26.4]} 35. Rb6 {[%clk 0:01:07.1]} 35... Be8 {[%clk 0:00:20.5]} 36.
Nxe8 {[%clk 0:01:02.4]} 36... Kxe8 {[%clk 0:00:19.7]} 37. Bf1 {[%clk 0:01:02.6]}
37... Kf8 {[%clk 0:00:18.1]} 38. Rbb7 {[%clk 0:01:02.9]} 38... Kg8 {[%clk
0:00:19.1]} 39. Rxf7 {[%clk 0:01:01.9]} 39... Kh8 {[%clk 0:00:17.3]} 40. Rxg7
{[%clk 0:01:01.7]} 40... Rb8 {[%clk 0:00:14]} 41. Bh3 {[%clk 0:01:02]} 41... Rd6
{[%clk 0:00:13.7]} 42. Kg2 {[%clk 0:01:00.5]} 42... Re8 {[%clk 0:00:09.9]} 43.
Rge7 {[%clk 0:00:57.3]} 43... Rxe7 {[%clk 0:00:09.7]} 44. Rxe7 {[%clk
0:00:59.2]} 44... Kg8 {[%clk 0:00:08.7]} 45. Rxe6 {[%clk 0:01:00.1]} 45... Rxe6
{[%clk 0:00:08.6]} 46. Bxe6+ {[%clk 0:01:00.7]} 46... Kg7 {[%clk 0:00:10.5]} 47.
Bxd5 {[%clk 0:01:02.3]} 1-0

[Event "*** Titled Tuesday Blitz"]
[Site "Chess.com"]
[Date "2018.12.04"]
[Round "9"]
[White "AndrBaryshpolets"]
[Black "GadimbayliA"]
[Result "0-1"]
[WhiteElo "2580"]
[BlackElo "2701"]
[TimeControl "180+2"]
[EndTime "15:10:16 PST"]
[Termination "GadimbayliA won by resignation"]

1. d4 {[%clk 0:03:01.9]} 1... Nf6 {[%clk 0:02:56.2]} 2. c4 {[%clk 0:03:02.6]}
2... e5 {[%clk 0:02:56.7]} 3. dxe5 {[%clk 0:03:03.4]} 3... Ng4 {[%clk
0:02:57.9]} 4. Bf4 {[%clk 0:03:04.2]} 4... Nc6 {[%clk 0:02:57.7]} 5. Nf3 {[%clk
0:03:02.4]} 5... Bb4+ {[%clk 0:02:58.7]} 6. Nc3 {[%clk 0:02:59.2]} 6... Qe7
{[%clk 0:02:57.6]} 7. Qd5 {[%clk 0:03:00.1]} 7... Bxc3+ {[%clk 0:02:46.1]} 8.
bxc3 {[%clk 0:03:00.9]} 8... f6 {[%clk 0:02:48]} 9. exf6 {[%clk 0:02:56.2]} 9...
Nxf6 {[%clk 0:02:49.9]} 10. Qd3 {[%clk 0:02:51.4]} 10... d6 {[%clk 0:02:50.2]}
11. g3 {[%clk 0:02:50.6]} 11... O-O {[%clk 0:02:50.3]} 12. Bg2 {[%clk
0:02:51.3]} 12... Ne4 {[%clk 0:02:44.5]} 13. O-O {[%clk 0:02:42.7]} 13... Bf5
{[%clk 0:02:44.7]} 14. Nd4 {[%clk 0:02:18.8]} 14... Nxd4 {[%clk 0:02:38.4]} 15.
cxd4 {[%clk 0:01:31]} 15... Nxf2 {[%clk 0:02:30.7]} 16. Qe3 {[%clk 0:00:37.5]}
16... Nh3+ {[%clk 0:02:24.1]} 17. Kh1 {[%clk 0:00:30.1]} 17... Qd7 {[%clk
0:02:22.9]} 18. Bxb7 {[%clk 0:00:23.8]} 18... Rae8 {[%clk 0:02:18.5]} 19. Bd5+
{[%clk 0:00:23]} 19... Kh8 {[%clk 0:02:18.3]} 20. Qd2 {[%clk 0:00:24.1]} 20...
Be4+ {[%clk 0:02:10.7]} 21. Bxe4 {[%clk 0:00:25]} 21... Rxe4 {[%clk 0:02:12.6]}
22. Be3 {[%clk 0:00:19]} 22... Rfe8 {[%clk 0:02:12.3]} 23. Rf3 {[%clk
0:00:20.1]} 23... Qc6 {[%clk 0:02:11.4]} 24. d5 {[%clk 0:00:14.9]} 24... Qxc4
{[%clk 0:02:11.5]} 25. Raf1 {[%clk 0:00:15.9]} 25... h6 {[%clk 0:01:57.9]} 26.
Bxh6 {[%clk 0:00:15.3]} 26... Rxe2 {[%clk 0:01:55.3]} 27. Bxg7+ {[%clk
0:00:03.5]} 27... Kxg7 {[%clk 0:01:57.2]} 28. Rf7+ {[%clk 0:00:04.1]} 28... Kg8
{[%clk 0:01:56.4]} 29. Qh6 {[%clk 0:00:05.3]} 29... Qxd5+ {[%clk 0:01:48.8]} 30.
R1f3 {[%clk 0:00:05.1]} 30... Qxf7 {[%clk 0:01:39.5]} 31. Rxf7 {[%clk
0:00:05.5]} 31... Kxf7 {[%clk 0:01:40.7]} 32. Qh5+ {[%clk 0:00:05.1]} 32... Kf6
{[%clk 0:01:40.7]} 33. Qh6+ {[%clk 0:00:05.8]} 33... Ke5 {[%clk 0:01:35]} 34.
Qxh3 {[%clk 0:00:06.9]} 34... Kd5 {[%clk 0:01:32.9]} 35. Qh5+ {[%clk 0:00:07.5]}
35... R8e5 {[%clk 0:01:32.3]} 36. Qf3+ {[%clk 0:00:08.3]} 36... Kd4 {[%clk
0:01:32]} 37. Qf4+ {[%clk 0:00:09.3]} 37... R5e4 {[%clk 0:01:31.8]} 38. Qf6+
{[%clk 0:00:10.3]} 38... Kd5 {[%clk 0:01:30.9]} 39. Qf5+ {[%clk 0:00:11.4]}
39... Kc6 {[%clk 0:01:28.5]} 40. Qf3 {[%clk 0:00:12.5]} 40... d5 {[%clk
0:01:28.1]} 41. h4 {[%clk 0:00:13.7]} 41... Rxa2 {[%clk 0:01:26.6]} 42. Qc3+
{[%clk 0:00:14.7]} 42... Rc4 {[%clk 0:01:24.7]} 43. Qe3 {[%clk 0:00:12]} 43...
a5 {[%clk 0:01:08.7]} 44. h5 {[%clk 0:00:12.2]} 44... Rcc2 {[%clk 0:01:08.8]}
45. Qe6+ {[%clk 0:00:12.3]} 45... Kc5 {[%clk 0:01:06.3]} 46. Qe7+ {[%clk
0:00:13.2]} 46... Kb6 {[%clk 0:01:03.7]} 47. Qe1 {[%clk 0:00:13.4]} 47... Rh2+
{[%clk 0:01:02.8]} 48. Kg1 {[%clk 0:00:14.7]} 48... Rag2+ {[%clk 0:01:04.1]} 49.
Kf1 {[%clk 0:00:16.1]} 49... Rh1+ {[%clk 0:01:01.3]} 50. Kxg2 {[%clk 0:00:17.3]}
50... Rxe1 {[%clk 0:01:03.2]} 51. g4 {[%clk 0:00:18.8]} 51... a4 {[%clk
0:01:02.4]} 52. h6 {[%clk 0:00:18]} 52... a3 {[%clk 0:01:03.1]} 53. h7 {[%clk
0:00:18.3]} 53... Re8 {[%clk 0:01:02.2]} 54. g5 {[%clk 0:00:19.7]} 54... a2
{[%clk 0:01:02.7]} 55. g6 {[%clk 0:00:21.6]} 55... a1=Q {[%clk 0:01:03.7]} 0-1

[Event "*** Titled Tuesday Blitz"]
[Site "Chess.com"]
[Date "2018.12.04"]
[Round "9"]
[White "martinique24"]
[Black "GMMatamoros"]
[Result "0-1"]
[WhiteElo "2422"]
[BlackElo "2537"]
[TimeControl "180+2"]
[EndTime "15:10:20 PST"]
[Termination "GMMatamoros won on time"]

1. e4 {[%clk 0:03:01.9]} 1... c5 {[%clk 0:02:57.1]} 2. Nf3 {[%clk 0:03:02.9]}
2... Nc6 {[%clk 0:02:57.5]} 3. d4 {[%clk 0:03:01.7]} 3... cxd4 {[%clk
0:02:59.4]} 4. Nxd4 {[%clk 0:03:03.6]} 4... e5 {[%clk 0:03:00.2]} 5. Nb5 {[%clk
0:03:03]} 5... d6 {[%clk 0:03:00.9]} 6. N1c3 {[%clk 0:03:02.8]} 6... a6 {[%clk
0:03:01.3]} 7. Na3 {[%clk 0:03:01.4]} 7... Be7 {[%clk 0:03:02.8]} 8. Nd5 {[%clk
0:02:58]} 8... Nf6 {[%clk 0:03:03]} 9. Be3 {[%clk 0:02:53.7]} 9... Nxd5 {[%clk
0:03:03.1]} 10. exd5 {[%clk 0:02:54.7]} 10... Nd4 {[%clk 0:03:03.7]} 11. Bxd4
{[%clk 0:02:35.4]} 11... exd4 {[%clk 0:03:05.6]} 12. Qxd4 {[%clk 0:02:36.4]}
12... O-O {[%clk 0:03:05.6]} 13. O-O-O {[%clk 0:02:34.8]} 13... Bf6 {[%clk
0:03:03.2]} 14. Qe4 {[%clk 0:02:18.8]} 14... Re8 {[%clk 0:02:55.4]} 15. Qf3
{[%clk 0:02:19.4]} 15... b5 {[%clk 0:02:52.9]} 16. Bd3 {[%clk 0:02:15.4]} 16...
Qa5 {[%clk 0:02:49.1]} 17. Bf5 {[%clk 0:02:04.4]} 17... Bxf5 {[%clk 0:02:30.2]}
18. Qxf5 {[%clk 0:02:05]} 18... Qb4 {[%clk 0:02:18.1]} 19. c3 {[%clk 0:01:49.4]}
19... Bxc3 {[%clk 0:02:16.9]} 20. Qc2 {[%clk 0:01:45.7]} 20... Rac8 {[%clk
0:02:01]} 21. Kb1 {[%clk 0:01:46.1]} 21... Bf6 {[%clk 0:01:55.3]} 22. Qd2 {[%clk
0:01:43.6]} 22... Qe4+ {[%clk 0:01:40.4]} 23. Nc2 {[%clk 0:01:34.7]} 23... Qxg2
{[%clk 0:01:32.5]} 24. Nb4 {[%clk 0:01:27.5]} 24... Qe4+ {[%clk 0:01:25.6]} 25.
Ka1 {[%clk 0:01:26.8]} 25... Qe2 {[%clk 0:01:11.6]} 26. Nc6 {[%clk 0:01:20.5]}
26... g6 {[%clk 0:01:08.3]} 27. Qb4 {[%clk 0:00:47.1]} 27... Re4 {[%clk
0:00:53.5]} 28. Qd2 {[%clk 0:00:43.1]} 28... Rce8 {[%clk 0:00:49.6]} 29. a3
{[%clk 0:00:39]} 29... Qf3 {[%clk 0:00:49.7]} 30. Qd3 {[%clk 0:00:29]} 30...
Qxf2 {[%clk 0:00:46]} 31. Rd2 {[%clk 0:00:27.2]} 31... Re1+ {[%clk 0:00:33.2]}
32. Rxe1 {[%clk 0:00:28.2]} 32... Qxe1+ {[%clk 0:00:34.2]} 33. Ka2 {[%clk
0:00:28.5]} 33... Re3 {[%clk 0:00:32.6]} 34. Qc2 {[%clk 0:00:27.9]} 34... Qf1
{[%clk 0:00:24.2]} 35. Rf2 {[%clk 0:00:26.2]} 35... Qh1 {[%clk 0:00:11]} 36.
Rxf6 {[%clk 0:00:26.3]} 36... Qxd5+ {[%clk 0:00:11.5]} 37. b3 {[%clk 0:00:23.9]}
37... a5 {[%clk 0:00:08.9]} 38. Rf2 {[%clk 0:00:13.4]} 38... a4 {[%clk
0:00:09.7]} 39. Qb2 {[%clk 0:00:03.5]} 39... axb3+ {[%clk 0:00:10.3]} 0-1

[Event "*** Titled Tuesday Blitz"]
[Site "Chess.com"]
[Date "2018.12.04"]
[Round "9"]
[White "ckgchess"]
[Black "Hrant_ChessMood"]
[Result "0-1"]
[WhiteElo "2620"]
[BlackElo "2935"]
[TimeControl "180+2"]
[EndTime "15:10:23 PST"]
[Termination "Hrant_ChessMood won by resignation"]

1. e4 {[%clk 0:03:01.9]} 1... c5 {[%clk 0:02:59.4]} 2. Nf3 {[%clk 0:03:03]} 2...
Nc6 {[%clk 0:02:59.9]} 3. Bb5 {[%clk 0:03:03.8]} 3... g6 {[%clk 0:03:00.7]} 4.
Bxc6 {[%clk 0:03:04.7]} 4... dxc6 {[%clk 0:03:02.2]} 5. d3 {[%clk 0:03:06.4]}
5... Bg7 {[%clk 0:03:03.1]} 6. h3 {[%clk 0:03:08.2]} 6... b6 {[%clk 0:03:02.4]}
7. Nc3 {[%clk 0:03:08.6]} 7... e5 {[%clk 0:03:00.8]} 8. Be3 {[%clk 0:03:05.2]}
8... Qe7 {[%clk 0:03:01.7]} 9. Qd2 {[%clk 0:02:59.6]} 9... h6 {[%clk 0:03:02]}
10. O-O {[%clk 0:02:55.2]} 10... Nf6 {[%clk 0:03:02.6]} 11. Nh2 {[%clk
0:02:55.4]} 11... Nh5 {[%clk 0:02:56.1]} 12. a4 {[%clk 0:02:44.2]} 12... a5
{[%clk 0:02:55.8]} 13. Ng4 {[%clk 0:02:28.4]} 13... g5 {[%clk 0:02:52.2]} 14.
Ra3 {[%clk 0:02:21.6]} 14... Nf4 {[%clk 0:02:51.4]} 15. Ne2 {[%clk 0:01:55.1]}
15... h5 {[%clk 0:02:47.8]} 16. Nh2 {[%clk 0:01:55.1]} 16... Be6 {[%clk
0:02:45.6]} 17. Ng3 {[%clk 0:01:50.8]} 17... Qd7 {[%clk 0:02:41.5]} 18. Nf5
{[%clk 0:01:41]} 18... Bxf5 {[%clk 0:02:40.7]} 19. exf5 {[%clk 0:01:42.9]} 19...
Qxf5 {[%clk 0:02:41.9]} 20. Rb3 {[%clk 0:01:43.6]} 20... Ra6 {[%clk 0:02:35]}
21. Re1 {[%clk 0:01:32.9]} 21... O-O {[%clk 0:02:35.6]} 22. Qc3 {[%clk
0:01:22.8]} 22... Nd5 {[%clk 0:02:30.3]} 23. Qc4 {[%clk 0:01:22.5]} 23... Raa8
{[%clk 0:02:26.8]} 24. Bd2 {[%clk 0:01:10.1]} 24... Qg6 {[%clk 0:02:25.6]} 25.
Nf3 {[%clk 0:01:09.7]} 25... f6 {[%clk 0:02:24.6]} 26. Rxb6 {[%clk 0:01:08.1]}
26... Kh8 {[%clk 0:02:19.3]} 27. Rxc6 {[%clk 0:01:06.4]} 27... Qf7 {[%clk
0:02:15.6]} 28. Rxc5 {[%clk 0:00:58]} 28... Rfd8 {[%clk 0:02:16.3]} 29. Bxa5
{[%clk 0:00:46.6]} 29... Rd7 {[%clk 0:02:17.5]} 30. Bd2 {[%clk 0:00:47.3]} 30...
Kh7 {[%clk 0:02:18.1]} 31. b4 {[%clk 0:00:47.4]} 31... Bf8 {[%clk 0:02:17.2]}
32. Rc6 {[%clk 0:00:42.1]} 32... Kg7 {[%clk 0:02:16]} 33. Bxg5 {[%clk 0:00:39]}
33... fxg5 {[%clk 0:02:12]} 34. Nxe5 {[%clk 0:00:40.2]} 34... Qf5 {[%clk
0:02:05.5]} 35. Nxd7 {[%clk 0:00:38.2]} 35... Qxd7 {[%clk 0:02:07.4]} 36. Rce6
{[%clk 0:00:30.8]} 36... Nf4 {[%clk 0:02:03.2]} 37. Qc3+ {[%clk 0:00:24.6]}
37... Kh7 {[%clk 0:01:59]} 38. Rc6 {[%clk 0:00:18.9]} 38... Bg7 {[%clk
0:01:52.2]} 39. Qc4 {[%clk 0:00:19.3]} 39... Qd5 {[%clk 0:01:45.2]} 40. Qxd5
{[%clk 0:00:16.7]} 40... Nxd5 {[%clk 0:01:47.1]} 41. b5 {[%clk 0:00:16.3]} 41...
Rxa4 {[%clk 0:01:48.3]} 42. c4 {[%clk 0:00:17.1]} 42... Nf4 {[%clk 0:01:47.5]}
43. Rd1 {[%clk 0:00:16.8]} 43... Bd4 {[%clk 0:01:41.5]} 44. b6 {[%clk
0:00:17.5]} 44... Ra2 {[%clk 0:01:42.3]} 45. Rf1 {[%clk 0:00:18.5]} 45... Rb2
{[%clk 0:01:32.6]} 46. c5 {[%clk 0:00:15.6]} 46... g4 {[%clk 0:01:33.8]} 47.
hxg4 {[%clk 0:00:16.4]} 47... hxg4 {[%clk 0:01:35.7]} 48. g3 {[%clk 0:00:13.2]}
48... Nh3+ {[%clk 0:01:34.9]} 49. Kg2 {[%clk 0:00:11.2]} 49... Nxf2 {[%clk
0:01:32.4]} 50. Rc7+ {[%clk 0:00:09.9]} 50... Kg6 {[%clk 0:01:33.1]} 51. Rc6+
{[%clk 0:00:08]} 51... Kg5 {[%clk 0:01:34.2]} 52. Rxf2 {[%clk 0:00:04.4]} 52...
Bxf2 {[%clk 0:01:33.4]} 53. Kh1 {[%clk 0:00:06.3]} 53... Bxg3 {[%clk 0:01:30.4]}
54. Rc8 {[%clk 0:00:07.4]} 54... Bf4 {[%clk 0:01:24.7]} 55. Rg8+ {[%clk
0:00:08.1]} 55... Kh4 {[%clk 0:01:25.8]} 56. Kg1 {[%clk 0:00:07.2]} 56... Kg3
{[%clk 0:01:26.5]} 57. Kf1 {[%clk 0:00:08.6]} 57... Kf3 {[%clk 0:01:26.5]} 58.
Re8 {[%clk 0:00:06.4]} 58... g3 {[%clk 0:01:26.3]} 59. c6 {[%clk 0:00:03.7]}
59... g2+ {[%clk 0:01:27]} 0-1

[Event "*** Titled Tuesday Blitz"]
[Site "Chess.com"]
[Date "2018.12.04"]
[Round "9"]
[White "toog"]
[Black "Manukyan_Artak"]
[Result "0-1"]
[WhiteElo "2225"]
[BlackElo "2411"]
[TimeControl "180+2"]
[EndTime "15:10:23 PST"]
[Termination "Manukyan_Artak won by resignation"]

1. e4 {[%clk 0:03:01.9]} 1... c5 {[%clk 0:03:00.7]} 2. Nf3 {[%clk 0:03:02.5]}
2... a6 {[%clk 0:03:01.8]} 3. c3 {[%clk 0:03:02.6]} 3... d5 {[%clk 0:03:01.9]}
4. exd5 {[%clk 0:03:01.4]} 4... Qxd5 {[%clk 0:03:03.8]} 5. d4 {[%clk 0:03:01.8]}
5... Bg4 {[%clk 0:03:03.8]} 6. Be2 {[%clk 0:02:58.2]} 6... e6 {[%clk 0:03:04.8]}
7. O-O {[%clk 0:02:56.8]} 7... Nf6 {[%clk 0:03:03.8]} 8. Na3 {[%clk 0:02:52.2]}
8... cxd4 {[%clk 0:02:59.7]} 9. Nc4 {[%clk 0:02:32.7]} 9... Nbd7 {[%clk
0:02:54.6]} 10. cxd4 {[%clk 0:02:27.1]} 10... Bxf3 {[%clk 0:02:38.8]} 11. gxf3
{[%clk 0:02:29]} 11... b5 {[%clk 0:02:30.6]} 12. Ne3 {[%clk 0:02:29.3]} 12...
Qg5+ {[%clk 0:02:19.3]} 13. Kh1 {[%clk 0:02:19]} 13... Bd6 {[%clk 0:02:11.1]}
14. Nc4 {[%clk 0:02:11.4]} 14... Bf4 {[%clk 0:02:04.9]} 15. Nd6+ {[%clk
0:01:49.2]} 15... Ke7 {[%clk 0:02:03.5]} 16. Ne4 {[%clk 0:01:50.1]} 16... Nxe4
{[%clk 0:01:47.9]} 17. fxe4 {[%clk 0:01:50.9]} 17... Bxc1 {[%clk 0:01:35.1]} 18.
Rxc1 {[%clk 0:01:51]} 18... Rac8 {[%clk 0:01:35.7]} 19. d5 {[%clk 0:01:27]}
19... Rxc1 {[%clk 0:01:31.4]} 20. Qxc1 {[%clk 0:01:26.9]} 20... Qxc1 {[%clk
0:01:31.6]} 21. Rxc1 {[%clk 0:01:28.8]} 21... exd5 {[%clk 0:00:54]} 22. exd5
{[%clk 0:01:28.4]} 22... Rb8 {[%clk 0:00:39.5]} 23. Rc7 {[%clk 0:00:53.9]} 23...
Kd6 {[%clk 0:00:34.1]} 24. Rc6+ {[%clk 0:00:54.5]} 24... Kxd5 {[%clk 0:00:27.8]}
25. Bf3+ {[%clk 0:00:54.9]} 25... Ke5 {[%clk 0:00:28.9]} 26. Rxa6 {[%clk
0:00:55.2]} 26... Nc5 {[%clk 0:00:24.6]} 27. Ra7 {[%clk 0:00:52.5]} 27... Kf6
{[%clk 0:00:25]} 28. Kg2 {[%clk 0:00:50.2]} 28... g5 {[%clk 0:00:24.7]} 29. Bd5
{[%clk 0:00:47.8]} 29... Ne6 {[%clk 0:00:25.8]} 30. Bxe6 {[%clk 0:00:48.2]}
30... Kxe6 {[%clk 0:00:26.2]} 31. b3 {[%clk 0:00:46.3]} 31... h5 {[%clk
0:00:27]} 32. a4 {[%clk 0:00:45.3]} 32... bxa4 {[%clk 0:00:27.7]} 33. bxa4
{[%clk 0:00:47.2]} 33... f5 {[%clk 0:00:26.2]} 34. Kf3 {[%clk 0:00:43.4]} 34...
Rb3+ {[%clk 0:00:26.3]} 35. Ke2 {[%clk 0:00:44.2]} 35... Rb2+ {[%clk 0:00:24.4]}
36. Ke3 {[%clk 0:00:44.9]} 36... Rb3+ {[%clk 0:00:25.6]} 37. Kd4 {[%clk
0:00:45.8]} 37... Rf3 {[%clk 0:00:26.1]} 38. Ra6+ {[%clk 0:00:45.9]} 38... Kd7
{[%clk 0:00:26.5]} 39. Rg6 {[%clk 0:00:43.7]} 39... g4 {[%clk 0:00:26.2]} 40.
Kc5 {[%clk 0:00:39.9]} 40... Rxf2 {[%clk 0:00:25.5]} 41. a5 {[%clk 0:00:40]}
41... Rxh2 {[%clk 0:00:24.7]} 42. a6 {[%clk 0:00:37.3]} 42... Ra2 {[%clk
0:00:25.2]} 43. a7 {[%clk 0:00:37.5]} 43... h4 {[%clk 0:00:21.6]} 44. Kb5 {[%clk
0:00:30.5]} 44... Rxa7 {[%clk 0:00:20.4]} 45. Rg7+ {[%clk 0:00:31.7]} 45... Ke6
{[%clk 0:00:22.1]} 46. Rxa7 {[%clk 0:00:33.6]} 46... h3 {[%clk 0:00:23.5]} 47.
Kc4 {[%clk 0:00:33.1]} 47... h2 {[%clk 0:00:24.2]} 48. Ra6+ {[%clk 0:00:33.3]}
48... Ke5 {[%clk 0:00:25.1]} 49. Ra1 {[%clk 0:00:32.6]} 49... g3 {[%clk
0:00:25.9]} 50. Re1+ {[%clk 0:00:32.9]} 50... Kf4 {[%clk 0:00:27]} 51. Rf1+
{[%clk 0:00:33.9]} 51... Kg4 {[%clk 0:00:28]} 0-1